bitfinex/quotes_SOLUSD_20250917
["timestamp","ask_amount","ask_price","bid_price","bid_amount"]
[1758137194361,0.69,238.34,238.22,5.08313824]
[1758137194560,5.77313824,238.34,238.23,14.6916845]
[1758137194775,9.96884869,238.34,238.23,4.19762414]
[1758137195181,5.77313824,238.34,238.24,0.68]
[1758137195490,9.96884669,238.34,238.24,0.68]
[1758137195681,0.69,238.38,238.24,0.68]
[1758137195881,25.95927899,238.47,238.24,0.68]
[1758137195882,0.69,238.37,238.24,0.68]
[1758137196072,0.69,238.37,238.25,5.08313824]
[1758137196274,5.77313824,238.37,238.25,0.68]
[1758137196488,5.77313824,238.37,238.26,5.08313824]
[1758137196697,0.69,238.37,238.27,4.19691946]
[1758137196894,0.69,238.37,238.27,4.87691946]
[1758137197076,0.69,238.37,238.28,5.08313824]
[1758137197276,0.69,238.37,238.27,15.36921811]
[1758137197486,4.88523866,238.37,238.27,4.87691946]
[1758137197683,0.69,238.37,238.26,5.08313824]
[1758137197879,0.69,238.36,238.24,4.87740609]
[1758137198084,0.69,238.36,238.27,5.08313824]
[1758137198281,0.69,238.35,238.24,15.37102596]
[1758137198493,0.69,238.35,238.26,5.08313824]
[1758137198695,0.69,238.35,238.24,15.37102596]
[1758137198900,5.08313824,238.38,238.26,5.08313824]
[1758137199101,9.4680697,238.39,238.28,5.08313824]
[1758137199304,0.19,238.39,238.28,5.08313824]
[1758137199480,4.38488491,238.39,238.27,0.68]
[1758137199677,5.08313824,238.38,238.27,5.76313824]
[1758137199898,5.08313824,238.38,238.18,0.68]
[1758137199899,5.08313824,238.3,238.18,0.68]
[1758137200101,5.08313824,238.28,238.18,0.68]
[1758137200310,5.08313824,238.28,238.18,5.76313824]
[1758137200508,26.0,238.36,238.18,0.68]
[1758137200820,5.08313824,238.32,238.22,4.19780035]
[1758137201000,5.77313824,238.33,238.23,0.68]
[1758137201410,5.77313824,238.33,238.2,4.19811869]
[1758137201708,5.08313824,238.29,238.18,9.96150174]
[1758137202010,0.69,238.28,238.18,9.28150174]
[1758137202213,0.69,238.28,238.18,5.08313824]
[1758137202425,5.08313824,238.24,238.12,0.68]
[1758137202711,0.69,238.23,238.14,4.19921054]
[1758137202921,4.88764874,238.23,238.14,4.19921054]
[1758137203123,5.77313824,238.22,238.11,4.19963046]
[1758137203288,0.69,238.22,238.12,5.08313824]
[1758137203489,0.69,238.22,238.14,5.08313824]
[1758137203688,0.69,238.22,238.12,5.76313824]
[1758137204107,5.08313824,238.26,238.16,5.08313824]
[1758137204307,0.69,238.27,238.16,5.08313824]
[1758137204490,4.88694338,238.27,238.18,5.08313824]
[1758137204698,0.69,238.27,238.2,5.08313824]
[1758137204903,0.69,238.32,238.24,5.08313824]
[1758137205100,6.14547064,238.45,238.26,5.08313824]
[1758137205101,5.77313824,238.36,238.26,5.08313824]
[1758137205308,5.08313824,238.38,238.28,5.08313824]
[1758137206118,5.08313824,238.34,238.23,5.76313824]
[1758137206292,5.08313824,238.42,238.18,0.68]
[1758137206293,5.08313824,238.26,238.18,0.68]
[1758137206495,0.69,238.27,238.18,0.68]
[1758137206696,5.08313824,238.24,238.18,0.68]
[1758137206916,5.08313824,238.19,238.12,0.68]
[1758137207118,5.08313824,238.2,238.12,0.68]
[1758137207421,5.08313824,238.18,238.11,5.08313824]
[1758137207718,5.08313824,238.21,238.13,5.08313824]
[1758137207924,0.69,238.24,238.13,5.08313824]
[1758137208110,5.08313824,238.22,238.13,5.08313824]
[1758137208324,4.8867949,238.28,238.17,5.08313824]
[1758137208625,5.08313824,238.24,238.17,5.08313824]
[1758137208822,5.08313824,238.24,238.18,4.19850533]
[1758137209217,5.08313824,238.27,238.2,5.08313824]
[1758137209429,4.88586287,238.33,238.21,0.68]
[1758137209617,0.69,238.33,238.21,0.68]
[1758137209928,5.08313824,238.27,238.21,0.68]
[1758137210126,5.08313824,238.26,238.19,5.08313824]
[1758137210328,5.08313824,238.24,238.18,4.19850533]
[1758137210716,5.08313824,238.25,238.18,4.19850533]
[1758137210917,5.08313824,238.24,238.18,4.19850533]
[1758137211318,5.08313824,238.25,238.18,19.7779069]
[1758137211813,5.08313824,238.24,238.18,4.19850533]
[1758137212010,5.08313824,238.23,238.18,4.19850533]
[1758137212210,5.08313824,238.22,238.18,4.19850533]
[1758137212629,5.08313824,238.23,238.18,4.19850533]
[1758137212834,5.08313824,238.21,238.16,4.19874738]
[1758137213141,4.19691946,238.27,238.16,4.19874738]
[1758137213309,0.69,238.24,238.16,4.19874738]
[1758137213508,5.08313824,238.17,238.09,0.68]
[1758137213820,5.08313824,238.16,238.1,4.19986492]
[1758137214002,5.08313824,238.23,238.15,5.08313824]
[1758137214206,5.08313824,238.25,238.18,5.08313824]
[1758137214426,0.69,238.29,238.2,5.08313824]
[1758137214605,5.08313824,238.27,238.2,5.08313824]
[1758137214804,5.08313824,238.25,238.11,36.3]
[1758137215019,5.08313824,238.26,238.13,26.0]
[1758137215229,5.08313824,238.26,238.17,5.08313824]
[1758137215439,5.08313824,238.24,238.14,0.68]
[1758137215728,0.69,238.25,238.12,5.08313824]
[1758137215930,5.08313824,238.21,238.12,5.08313824]
[1758137216101,5.08313824,238.21,238.13,0.68]
[1758137216305,5.08313824,238.21,238.13,5.76313824]
[1758137217028,5.08313824,238.27,238.2,5.08313824]
[1758137217333,5.08313824,238.27,238.16,15.37600268]
[1758137217520,5.77313824,238.27,238.18,5.08313824]
[1758137217836,0.69,238.26,238.16,5.08313824]
[1758137218216,0.69,238.26,238.18,5.08313824]
[1758137218422,5.77313824,238.26,238.16,0.68]
[1758137218620,0.69,238.26,238.18,5.08313824]
[1758137218807,26.69,238.33,238.22,5.08313824]
[1758137219014,9.27917717,238.32,238.23,4.19762414]
[1758137219232,0.69,238.33,238.25,5.08313824]
[1758137219434,5.08313824,238.32,238.25,5.08313824]
[1758137219809,62.22,238.38,238.28,7.95562844]
[1758137219810,0.69,238.38,238.28,7.95562844]
[1758137220028,7.95562844,238.36,238.28,7.95562844]
[1758137220313,0.69,238.36,238.26,0.68]
[1758137220639,8.64562844,238.36,238.26,0.68]
[1758137220840,8.64562844,238.36,238.28,7.95562844]
[1758137221012,8.64562844,238.36,238.26,8.63562844]
[1758137221013,12.15113924,238.35,238.26,8.63562844]
[1758137221348,12.15113924,238.35,238.26,12.83268732]
[1758137221515,7.95562844,238.34,238.26,12.83268732]
[1758137221711,0.71,238.33,238.18,26.66]
[1758137221945,0.71,238.33,238.21,7.95562844]
[1758137222249,0.71,238.32,238.19,14.69415172]
[1758137222447,0.71,238.32,238.13,7.98562844]
[1758137222448,7.95562844,238.2,238.13,7.98562844]
[1758137222613,0.66,238.22,238.13,7.98562844]
[1758137222948,7.95562844,238.17,238.13,0.03]
[1758137223110,0.66,238.21,238.13,0.03]
[1758137223315,8.61562844,238.24,238.16,7.95562844]
[1758137223531,17.06833455,238.33,238.2,7.95562844]
[1758137223742,7.95562844,238.27,238.18,7.95562844]
[1758137223913,0.66,238.26,238.18,7.95562844]
[1758137224112,7.95562844,238.23,238.13,0.03]
[1758137224342,7.95562844,238.23,238.14,7.95562844]
[1758137224651,7.95562844,238.23,238.15,7.95562844]
[1758137224936,7.95562844,238.23,238.16,7.95562844]
[1758137225530,7.95562844,238.2,238.13,0.03]
[1758137225843,7.95562844,238.19,238.13,0.03]
[1758137226449,7.95562844,238.2,238.13,0.03]
[1758137226749,0.66,238.22,238.16,7.95562844]
[1758137226922,0.66,238.22,238.16,12.15440918]
[1758137227116,0.66,238.22,238.15,7.95562844]
[1758137227117,4.85782566,238.22,238.15,7.95562844]
[1758137227316,4.19782566,238.22,238.15,7.95562844]
[1758137227613,8.61562844,238.21,238.13,0.03]
[1758137227810,8.61562844,238.21,238.13,7.98562844]
[1758137228016,0.66,238.21,238.13,4.2293859]
[1758137228212,4.19744795,238.24,238.19,7.95562844]
[1758137228453,4.85744795,238.24,238.19,7.95562844]
[1758137228756,4.19719444,238.26,238.14,0.68]
[1758137228916,0.66,238.26,238.19,7.95562844]
[1758137229117,4.85714812,238.26,238.16,0.68]
[1758137229541,4.19714812,238.26,238.19,7.95562844]
[1758137229844,4.19699381,238.27,238.2,7.95562844]
[1758137230023,12.81262225,238.27,238.16,0.68]
[1758137230226,7.95562844,238.17,238.13,0.03]
[1758137230435,36.06,238.2,238.13,0.03]
[1758137230752,7.95562844,238.15,238.13,0.03]
[1758137230910,4.19903422,238.15,238.13,0.03]
[1758137231117,8.61562844,238.14,238.13,0.03]
[1758137232737,44.71562844,238.14,238.13,0.03]
[1758137232943,44.71562844,238.14,237.96,47.01157062]
[1758137232944,4.19938688,238.13,237.95,4.20256356]
[1758137233116,26.0,238.11,237.94,0.71]
[1758137233318,14.6978541,238.13,237.94,4.91269113]
[1758137233319,43.07278403,238.1,237.94,4.91269113]
[1758137233529,7.95562844,238.02,237.94,12.86831957]
[1758137233740,36.96,238.03,237.94,12.18831957]
[1758137233960,8.61562844,238.02,237.94,0.03]
[1758137234246,0.66,238.07,237.95,0.68]
[1758137234419,8.61562844,238.07,237.95,0.68]
[1758137234625,0.66,238.07,237.98,7.95562844]
[1758137234929,0.66,238.07,238.0,7.95562844]
[1758137235239,0.66,238.06,237.94,4.23267008]
[1758137235438,0.66,238.05,237.94,4.23268877]
[1758137235641,7.95562844,238.02,237.94,0.03]
[1758137235833,7.95562844,237.96,237.94,0.03]
[1758137236034,7.95562844,237.97,237.94,0.03]
[1758137236219,7.95562844,238.02,237.94,0.71]
[1758137236426,7.95562844,238.02,237.94,12.86831591]
[1758137236629,7.95562844,238.02,237.96,7.95562844]
[1758137236832,36.44,238.07,237.97,7.95562844]
[1758137237033,7.95562844,238.06,237.99,7.95562844]
[1758137237224,12.15632279,238.06,237.97,7.95562844]
[1758137237423,7.95562844,238.06,237.98,0.68]
[1758137237720,36.44,238.07,237.99,7.95562844]
[1758137237924,7.95562844,238.13,238.05,7.95562844]
[1758137238124,4.19826986,238.2,238.07,7.95562844]
[1758137238348,37.1,238.19,238.12,7.95562844]
[1758137238531,36.44,238.19,238.12,7.95562844]
[1758137238732,12.1538983,238.2,238.1,0.68]
[1758137239052,59.16928033,238.2,238.11,7.95562844]
[1758137239260,37.18,238.2,238.11,7.95562844]
[1758137239555,4.85820748,238.2,238.11,7.95562844]
[1758137239757,0.66,238.2,238.13,7.95562844]
[1758137239941,40.71784523,238.22,238.15,7.95562844]
[1758137240327,4.19784523,238.22,238.15,7.95562844]
[1758137240527,4.19784523,238.22,238.12,0.68]
[1758137240831,4.19784523,238.22,238.03,0.42011511]
[1758137240832,7.95562844,238.13,238.03,0.68]
[1758137241040,7.95562844,238.13,238.05,7.95562844]
[1758137241241,12.15483898,238.14,238.05,7.95562844]
[1758137241467,7.95562844,238.14,238.07,7.95562844]
[1758137241631,36.5,238.15,238.07,7.95562844]
[1758137241832,36.5,238.15,238.04,0.68]
[1758137241833,7.95562844,238.15,238.04,0.68]
[1758137242038,37.16,238.21,238.11,7.95562844]
[1758137242242,7.95562844,238.19,238.11,7.95562844]
[1758137242661,7.95562844,238.19,238.1,7.95562844]
[1758137242840,8.61562844,238.21,238.12,7.95562844]
[1758137243047,24.70748785,238.35,238.03,35.7097615]
[1758137243048,7.95562844,238.24,238.16,4.19885791]
[1758137243359,44.47562844,238.24,238.15,4.19902021]
[1758137243558,7.95562844,238.24,238.15,4.19902021]
[1758137243738,4.85733622,238.25,238.15,4.19902021]
[1758137243739,0.66,238.25,238.17,7.95562844]
[1758137244063,7.95562844,238.18,238.02,0.68]
[1758137244233,7.95562844,238.11,238.03,0.68]
[1758137244433,7.95562844,238.09,238.03,0.68]
[1758137244965,7.95562844,238.07,238.0,0.68]
[1758137245169,16.40557577,238.14,237.97,8.63562844]
[1758137245170,7.95562844,238.05,237.97,8.63562844]
[1758137245550,7.95562844,238.07,237.98,8.63562844]
[1758137246076,7.95562844,238.08,238.0,7.95562844]
[1758137246380,7.95562844,238.08,237.99,8.63562844]
[1758137246888,7.95562844,238.06,237.99,0.68]
[1758137247054,7.95562844,238.06,237.99,4.8817699]
[1758137247255,12.15596447,238.08,237.99,0.68]
[1758137247470,7.95562844,238.08,237.99,0.68]
[1758137247675,7.95562844,238.11,238.02,7.95562844]
[1758137247887,36.54,238.15,237.99,0.68]
[1758137247888,7.95562844,238.15,238.06,7.95562844]
[1758137248179,12.15433888,238.17,238.08,7.95562844]
[1758137248583,7.95562844,238.17,238.08,7.95562844]
[1758137249087,37.08,238.19,238.11,4.19973961]
[1758137249260,36.42,238.19,238.12,7.95562844]
[1758137249671,7.95562844,238.22,238.12,7.95562844]
[1758137249869,36.38,238.25,238.14,7.95562844]
[1758137250172,7.95562844,238.23,238.14,7.95562844]
[1758137250474,44.33562844,238.25,238.16,7.95562844]
[1758137250972,44.33562844,238.25,238.15,0.68]
[1758137251161,7.95562844,238.23,238.16,4.19885791]
[1758137251557,0.66,238.24,238.16,14.69600268]
[1758137251870,7.95562844,238.23,238.16,14.69600268]
[1758137252069,7.95562844,238.21,238.15,0.68]
[1758137252252,7.95562844,238.21,238.14,4.19907949]
[1758137252454,7.95562844,238.21,238.12,12.83503662]
[1758137252653,7.95562844,238.21,238.12,4.87940818]
[1758137252866,7.95562844,238.21,238.12,12.83503662]
[1758137253067,7.95562844,238.21,238.12,8.63562844]
[1758137253374,7.95562844,238.13,238.03,0.71]
[1758137253563,7.95562844,238.06,237.98,0.71]
[1758137253763,7.95562844,238.04,237.98,0.71]
[1758137254685,7.95562844,238.07,237.98,0.71]
[1758137255285,0.72,238.14,238.03,7.95562844]
[1758137255497,37.14,238.17,238.06,7.95562844]
[1758137255659,37.14,238.17,238.04,0.71]
[1758137255660,7.95562844,238.14,238.04,0.71]
[1758137255857,37.14,238.17,238.08,7.95562844]
[1758137256180,45.09562844,238.17,238.08,7.95562844]
[1758137256580,40.59828561,238.2,238.12,0.03]
[1758137256755,49.27391405,238.2,238.12,7.98562844]
[1758137256956,41.31828561,238.2,238.12,7.98562844]
[1758137257180,49.27391405,238.2,238.12,7.98562844]
[1758137257691,23.36929608,238.2,238.12,7.98562844]
[1758137257898,4.91828561,238.2,238.12,7.98562844]
[1758137258059,0.72,238.2,238.12,7.98562844]
[1758137258457,7.95562844,238.19,238.12,0.03]
[1758137258677,4.9181866,238.2,238.12,0.03]
[1758137258875,7.95562844,238.19,238.12,0.03]
[1758137259186,4.19850533,238.18,238.12,0.03]
[1758137259396,7.95562844,238.17,238.12,0.03]
[1758137259685,62.42,238.21,238.12,0.03]
[1758137259686,4.1983586,238.19,238.12,0.03]
[1758137259870,37.14,238.21,238.12,0.03]
[1758137260069,7.95562844,238.2,238.12,0.03]
[1758137260667,0.06,238.21,238.13,0.71]
[1758137260877,8.01562844,238.21,238.13,0.71]
[1758137261077,0.06,238.21,238.13,8.66562844]
[1758137261280,0.06,238.21,238.16,4.19885791]
[1758137262080,0.06,238.21,238.17,0.71]
[1758137262266,0.06,238.21,238.14,4.90908572]
[1758137262595,0.06,238.21,238.13,10.49832374]
[1758137262596,7.95562844,238.19,238.13,4.19932531]
[1758137262799,7.95562844,238.2,238.13,12.86495375]
[1758137263101,0.06,238.21,238.13,15.40779253]
[1758137263266,0.06,238.21,238.16,4.19885791]
[1758137263772,7.95562844,238.19,238.12,4.22954977]
[1758137264011,0.72,238.2,238.13,7.95562844]
[1758137264181,0.06,238.21,238.15,7.95562844]
[1758137264982,4.25799346,238.21,238.15,7.95562844]
[1758137265401,12.2136219,238.21,238.13,7.95562844]
[1758137265595,12.2136219,238.21,238.12,0.03]
[1758137265788,4.25799346,238.21,238.12,7.98562844]
[1758137266099,4.25799346,238.21,238.14,7.95562844]
[1758137266997,0.06,238.21,238.14,7.95562844]
[1758137267207,0.06,238.21,238.16,7.95562844]
[1758137267371,0.06,238.21,238.16,12.15444363]
[1758137267573,0.06,238.21,238.18,7.95562844]
[1758137267774,0.06,238.21,238.16,4.19881519]
[1758137267975,0.06,238.21,238.19,7.95562844]
[1758137269111,4.91692379,238.27,238.21,49.94]
[1758137269280,4.19727177,238.25,238.09,36.14]
[1758137269481,8.67562844,238.26,238.03,13.59559401]
[1758137269679,12.87276004,238.26,238.18,7.95562844]
[1758137269896,0.72,238.26,238.18,7.95562844]
[1758137270094,4.91714677,238.26,238.18,7.95562844]
[1758137270309,7.95562844,238.24,238.07,36.02]
[1758137270512,8.67562844,238.24,238.07,36.02]
[1758137270680,8.67562844,238.24,238.1,0.5]
[1758137270887,0.72,238.23,238.14,7.95562844]
[1758137271288,0.72,238.23,238.16,7.95562844]
[1758137271529,0.72,238.23,238.16,12.15448058]
[1758137271704,7.95562844,238.24,238.16,12.15448058]
[1758137272016,8.67562844,238.25,238.18,7.95562844]
[1758137272227,26.0,238.2,238.11,7.95562844]
[1758137272529,7.95562844,238.19,238.11,7.95562844]
[1758137272733,8.67562844,238.19,238.11,7.95562844]
[1758137272895,7.95562844,238.17,238.08,7.95562844]
[1758137273523,4.1988377,238.17,238.1,7.95562844]
[1758137273688,7.95562844,238.22,238.14,7.95562844]
[1758137273889,12.15344156,238.22,238.14,7.95562844]
[1758137274114,0.72,238.21,238.12,7.95562844]
[1758137274732,36.0,238.24,238.16,7.95562844]
[1758137275031,36.0,238.24,238.09,14.7003234]
[1758137275032,0.72,238.25,238.14,0.71]
[1758137275201,0.72,238.25,238.09,14.7003234]
[1758137275202,0.72,238.24,238.09,15.4103234]
[1758137275423,0.72,238.24,238.04,21.00400937]
[1758137275424,7.95562844,238.27,238.19,4.19832906]
[1758137276224,0.72,238.27,238.19,4.19832906]
[1758137276826,0.72,238.27,238.2,7.95562844]
[1758137276827,0.06,238.23,238.2,7.95562844]
[1758137277333,0.06,238.23,238.19,4.19832906]
[1758137277518,0.06,238.23,238.18,7.95562844]
[1758137277832,0.06,238.23,238.2,7.95562844]
[1758137278600,0.06,238.23,238.17,14.69538564]
[1758137278806,0.06,238.23,238.22,7.95562844]
[1758137279020,12.48220899,238.37,238.22,7.95562844]
[1758137279208,0.7,238.39,238.31,26.0]
[1758137279422,7.95562844,238.41,238.32,12.15159067]
[1758137279930,5.06372383,238.41,238.32,4.19596223]
[1758137280233,5.06372383,238.41,238.23,20.98811218]
[1758137280531,5.06372383,238.39,238.31,5.06372383]
[1758137280730,5.06372383,238.37,238.29,5.06372383]
[1758137281146,5.06372383,238.35,238.26,0.7]
[1758137281309,13.59559401,238.37,238.27,5.06372383]
[1758137281648,18.65931784,238.4,238.31,5.06372383]
[1758137282025,13.59559401,238.4,238.28,0.7]
[1758137282223,5.06372383,238.39,238.3,5.06372383]
[1758137282862,40.71447246,238.41,238.32,5.06372383]
[1758137283152,40.71447246,238.41,238.28,0.7]
[1758137283350,40.71447246,238.41,238.33,5.06372383]
[1758137283655,40.71447246,238.41,238.33,9.25948927]
[1758137284753,5.06372383,238.36,238.18,4.19850533]
[1758137284931,5.06372383,238.34,238.25,5.06372383]
[1758137285329,5.06372383,238.32,238.24,5.06372383]
[1758137285532,4.19621501,238.31,238.2,0.66]
[1758137285838,4.19621501,238.31,238.21,5.06372383]
[1758137285839,5.06372383,238.3,238.21,5.06372383]
[1758137286246,5.06372383,238.3,238.19,4.19831014]
[1758137286247,0.72,238.31,238.27,5.06372383]
[1758137286426,0.72,238.34,238.27,5.06372383]
[1758137287241,0.72,238.34,238.28,5.06372383]
[1758137287722,4.91576376,238.34,238.28,5.06372383]
[1758137288035,4.91576376,238.34,238.26,5.06372383]
[1758137288367,9.97948759,238.34,238.24,0.66]
[1758137288657,18.65931784,238.33,238.2,0.66]
[1758137288869,5.06372383,238.3,238.23,5.06372383]
[1758137289031,0.72,238.29,238.21,5.06372383]
[1758137289741,0.72,238.29,238.23,5.06372383]
[1758137290128,0.72,238.31,238.23,5.06372383]
[1758137290973,5.78372383,238.3,238.2,0.66]
[1758137291152,5.78372383,238.3,238.22,5.06372383]
[1758137291641,0.72,238.3,238.22,5.06372383]
[1758137291840,50.40554608,238.33,238.15,0.66]
[1758137291841,5.06372383,238.25,238.15,0.66]
[1758137292041,0.72,238.24,238.17,5.06372383]
[1758137292678,19.37931784,238.23,238.12,0.03]
[1758137292845,5.06372383,238.18,238.12,0.03]
[1758137293044,18.65931784,238.19,238.12,0.03]
[1758137293270,31.06372383,238.2,238.12,0.03]
[1758137293477,0.72,238.19,238.12,0.03]
[1758137293845,4.19850533,238.18,238.12,0.03]
[1758137294046,4.91842297,238.19,238.12,0.03]
[1758137294245,4.91842297,238.19,238.05,11.16159796]
[1758137294246,5.06372383,238.15,238.0,5.06372383]
[1758137294442,5.06372383,238.13,238.04,5.06372383]
[1758137294656,0.72,238.12,238.04,5.06372383]
[1758137294877,0.72,238.12,238.08,5.06372383]
[1758137295087,0.72,238.2,238.11,5.06372383]
[1758137295378,0.72,238.2,238.15,5.06372383]
[1758137295676,0.72,238.2,238.12,0.03]
[1758137295677,0.72,238.19,238.12,0.03]
[1758137295845,4.19850533,238.18,238.12,0.03]
[1758137296040,4.19850533,238.18,238.13,5.06372383]
[1758137296245,0.72,238.17,238.13,5.06372383]
[1758137296474,18.65931784,238.15,238.12,0.03]
[1758137296778,5.06372383,238.13,238.12,0.03]
[1758137297068,0.72,238.14,238.12,0.03]
[1758137297577,0.72,238.13,238.12,0.03]
[1758137297875,0.72,238.18,238.12,0.03]
[1758137298081,62.28,238.18,238.12,0.03]
[1758137298447,5.06372383,238.14,238.12,0.03]
[1758137298641,5.06372383,238.16,238.12,0.03]
[1758137298848,35.56,238.17,238.12,0.03]
[1758137299074,35.56,238.17,238.12,5.09372383]
[1758137299261,36.28,238.17,238.12,5.09372383]
[1758137299572,0.72,238.17,238.12,5.09372383]
[1758137300274,0.72,238.17,238.12,9.29327014]
[1758137300777,0.72,238.16,238.12,0.03]
[1758137301283,5.06372383,238.13,238.12,0.03]
[1758137301665,0.72,238.13,238.12,0.03]
[1758137301889,5.78372383,238.13,238.12,0.03]
[1758137302060,9.98311071,238.13,238.12,0.03]
[1758137302765,9.98311071,238.13,238.09,0.03]
[1758137302766,39.59559401,238.1,238.09,0.03]
[1758137302967,44.65931784,238.1,237.99,4.40179631]
[1758137303158,5.06372383,238.05,237.99,4.40179631]
[1758137303485,39.59559401,238.1,237.99,4.40179631]
[1758137303486,35.66,238.06,237.99,4.40179631]
[1758137303675,35.66,238.06,237.99,10.12552014]
[1758137303986,35.66,238.06,238.01,5.06372383]
[1758137304285,35.66,238.06,238.01,9.92518842]
[1758137304576,5.06372383,238.09,238.02,0.66]
[1758137304780,36.36,238.1,238.04,5.06372383]
[1758137304986,36.36,238.1,238.06,5.06372383]
[1758137305494,35.62,238.11,238.06,5.06372383]
[1758137305865,36.34,238.11,238.02,0.66]
[1758137306085,0.72,238.11,238.06,9.26426114]
[1758137306260,35.6,238.12,238.08,5.06372383]
[1758137306687,36.32,238.12,238.08,5.06372383]
[1758137307670,35.6,238.12,238.08,5.06372383]
[1758137307866,0.72,238.18,238.1,5.06372383]
[1758137308085,0.72,238.18,238.09,4.19997962]
[1758137308086,4.19885791,238.16,238.09,4.19997962]
[1758137308396,5.06372383,238.14,238.04,5.06372383]
[1758137308693,13.59559401,238.11,238.02,5.06372383]
[1758137308897,13.59559401,238.11,237.99,0.2]
[1758137308898,5.06372383,238.08,237.99,0.2]
[1758137309125,5.06372383,238.06,237.99,0.2]
[1758137309397,0.72,238.06,237.99,5.26372383]
[1758137309574,0.72,238.06,237.99,0.2]
[1758137309768,0.72,238.06,238.04,5.06372383]
[1758137309967,35.54,238.08,238.04,5.06372383]
[1758137310191,0.72,238.07,238.02,5.06372383]
[1758137310771,30.19965475,238.12,238.03,0.66]
[1758137310982,0.72,238.11,238.04,5.06372383]
[1758137311199,62.22,238.12,238.09,5.06372383]
[1758137311381,0.72,238.11,238.07,5.06372383]
[1758137311860,61.5,238.12,238.07,5.06372383]
[1758137311861,0.72,238.1,238.07,5.06372383]
[1758137312065,35.5,238.12,238.07,5.06372383]
[1758137312399,35.5,238.12,238.09,5.06372383]
[1758137312601,4.19909131,238.15,238.07,0.66]
[1758137312771,35.46,238.14,238.1,5.06372383]
[1758137312980,35.46,238.14,238.09,5.06372383]
[1758137313203,0.71,238.13,238.09,5.06372383]
[1758137313804,35.46,238.14,238.09,5.06372383]
[1758137314009,0.71,238.13,238.05,0.72]
[1758137314303,0.71,238.13,238.08,5.06372383]
[1758137314496,39.65924243,238.14,238.08,4.20025564]
[1758137314700,39.65924243,238.14,238.09,5.06372383]
[1758137314880,0.71,238.13,238.09,5.06372383]
[1758137315081,39.65924243,238.14,238.09,5.06372383]
[1758137315495,40.36924243,238.14,238.09,5.06372383]
[1758137316397,40.36921305,238.14,238.09,5.06372383]
[1758137316808,0.71,238.13,237.99,0.2]
[1758137317105,0.71,238.13,238.03,5.06372383]
[1758137317106,5.06372383,238.12,238.03,5.06372383]
[1758137317403,0.71,238.11,238.03,5.06372383]
[1758137317593,5.77372383,238.1,238.01,5.06372383]
[1758137317803,35.32,238.09,238.03,5.06372383]
[1758137318012,35.32,238.09,238.05,5.06372383]
[1758137318200,0.71,238.1,238.05,5.06372383]
[1758137318520,13.59559401,238.15,238.0,14.70588235]
[1758137318521,4.19904479,238.15,238.09,5.06372383]
[1758137318806,0.71,238.2,238.13,5.06372383]
[1758137318980,35.3,238.19,238.13,5.06372383]
[1758137319714,0.71,238.18,238.12,5.06372383]
[1758137320428,9.97249724,238.17,238.08,5.06372383]
[1758137320639,0.71,238.16,238.1,5.06372383]
[1758137321014,4.19877341,238.17,238.06,14.70217592]
[1758137321015,0.71,238.15,238.06,14.70217592]
[1758137321333,35.28,238.14,238.09,5.06372383]
[1758137321712,26.0,238.11,237.99,0.2]
[1758137321919,48.87559401,238.1,238.02,5.06372383]
[1758137322112,13.59559401,238.06,237.99,0.2]
[1758137322412,14.70402889,238.03,237.99,0.2]
[1758137322617,35.3,238.02,237.99,0.2]
[1758137322821,4.20115111,238.03,237.99,0.2]
[1758137323042,10.50174561,238.06,237.99,0.2]
[1758137323043,35.34,238.01,237.99,0.2]
[1758137323241,0.71,238.07,237.99,5.26372383]
[1758137323413,13.59559401,238.1,238.03,5.06372383]
[1758137323606,36.05,238.09,238.0,0.72]
[1758137323820,36.05,238.09,238.02,5.06372383]
[1758137324426,5.77372383,238.08,238.0,5.06372383]
[1758137324630,35.32,238.07,238.02,5.06372383]
[1758137324843,0.71,238.11,238.02,5.06372383]
[1758137325013,5.06372383,238.08,238.0,5.78372383]
[1758137325546,36.03,238.1,238.0,9.9853408]